[Event "Kvibergspelen 2022"]
[Site "Kviberg Park Hotel & Conference, Krutvagen 2, Gothenburg, Sweden"]
[Date "2022.09.30"]
[Round "1.7"]
[White "Gerdes, Sebastian"]
[Black "Mitusov, Semen"]
[Result "0-1"]
[TimeControl "15 minutes + 5 seconds per move from move one (Round 1 - 4) / 90 minutes + 30 seconds per move from move one (Round 5 - 8)"]
[BlackTitle "FM"]
[WhiteFideId "1745697"]
[BlackFideId "14151049"]
[WhiteElo "1746"]
[BlackElo "2418"]

1. c4 {[%clk 00:15:09]} {[%emt 00:00:01]} e6 {[%clk 00:14:37]} {[%emt
00:00:34]} 2. g3 {[%clk 00:15:11]} {[%emt 00:00:02]} Nf6 {[%clk 00:14:36]}
{[%emt 00:00:05]} 3. Bg2 {[%clk 00:15:14]} {[%emt 00:00:02]} d5 {[%clk
00:14:37]} {[%emt 00:00:05]} 4. cxd5 {[%clk 00:15:02]} {[%emt 00:00:17]} exd5
{[%clk 00:14:39]} {[%emt 00:00:03]} 5. d4 {[%clk 00:15:05]} {[%emt 00:00:02]}
Be7 {[%clk 00:14:25]} {[%emt 00:00:19]} 6. Nc3 {[%clk 00:15:07]} {[%emt
00:00:02]} c6 {[%clk 00:14:14]} {[%emt 00:00:17]} 7. Nf3 {[%clk 00:15:06]}
{[%emt 00:00:06]} O-O {[%clk 00:14:09]} {[%emt 00:00:10]} 8. O-O {[%clk
00:15:08]} {[%emt 00:00:02]} h6 {[%clk 00:14:13]} {[%emt 00:00:02]} 9. e3
{[%clk 00:14:59]} {[%emt 00:00:15]} Bf5 {[%clk 00:14:09]} {[%emt 00:00:08]} 10.
Re1 {[%clk 00:14:25]} {[%emt 00:00:38]} Re8 {[%clk 00:14:13]} {[%emt 00:00:01]}
11. h3 {[%clk 00:14:29]} {[%emt 00:00:02]} Nbd7 {[%clk 00:14:03]} {[%emt
00:00:15]} 12. a4 {[%clk 00:14:11]} {[%emt 00:00:23]} Bd6 {[%clk 00:13:57]}
{[%emt 00:00:11]} 13. b3 {[%clk 00:13:41]} {[%emt 00:00:35]} Qe7 {[%clk
00:13:22]} {[%emt 00:00:40]} 14. Nh4 {[%clk 00:13:01]} {[%emt 00:00:44]} Bh7
{[%clk 00:13:21]} {[%emt 00:00:07]} 15. Qf3 {[%clk 00:12:45]} {[%emt 00:00:21]}
Ne4 {[%clk 00:12:23]} {[%emt 00:01:03]} 16. Nxe4 {[%clk 00:12:18]} {[%emt
00:00:31]} dxe4 {[%clk 00:11:30]} {[%emt 00:00:59]} 17. Qg4 {[%clk 00:11:31]}
{[%emt 00:00:52]} Nf6 {[%clk 00:11:09]} {[%emt 00:00:26]} 18. Nf5 {[%clk
00:11:31]} {[%emt 00:00:05]} Bxf5 {[%clk 00:11:09]} {[%emt 00:00:05]} 19. Qxf5
{[%clk 00:11:35]} {[%emt 00:00:02]} g6 {[%clk 00:11:13]} 20. Qa5 {[%clk
00:11:37]} {[%emt 00:00:02]} Bb4 {[%clk 00:11:16]} {[%emt 00:00:02]} 21. Qe5
{[%clk 00:11:35]} {[%emt 00:00:06]} Qxe5 {[%clk 00:10:44]} {[%emt 00:00:38]} 22.
dxe5 {[%clk 00:11:39]} {[%emt 00:00:01]} Bxe1 {[%clk 00:10:48]} {[%emt
00:00:01]} 23. Bb2 {[%clk 00:11:28]} {[%emt 00:00:16]} Bb4 {[%clk 00:10:45]}
{[%emt 00:00:08]} 24. exf6 {[%clk 00:11:29]} {[%emt 00:00:03]} Rad8 {[%clk
00:10:49]} 25. Rc1 {[%clk 00:11:13]} {[%emt 00:00:21]} a5 {[%clk 00:10:36]}
{[%emt 00:00:19]} 26. Bd4 {[%clk 00:11:11]} {[%emt 00:00:06]} c5 {[%clk
00:09:44]} {[%emt 00:00:59]} 27. Bb2 {[%clk 00:10:52]} {[%emt 00:00:23]} Rd3
{[%clk 00:09:36]} {[%emt 00:00:12]} 28. Kh2 {[%clk 00:10:27]} {[%emt 00:00:30]}
Rd2 {[%clk 00:09:13]} {[%emt 00:00:29]} 29. Bc3 {[%clk 00:10:26]} {[%emt
00:00:06]} Rxf2 {[%clk 00:09:07]} {[%emt 00:00:10]} 30. Bxb4 {[%clk 00:10:28]}
{[%emt 00:00:03]} cxb4 {[%clk 00:09:09]} {[%emt 00:00:03]} 31. Rc7 {[%clk
00:10:16]} {[%emt 00:00:17]} Rxf6 {[%clk 00:09:02]} {[%emt 00:00:12]} 32. Rxb7
{[%clk 00:10:20]} {[%emt 00:00:02]} Re5 {[%clk 00:08:47]} {[%emt 00:00:20]} 33.
Kg1 {[%clk 00:09:40]} {[%emt 00:00:44]} Rc6 {[%clk 00:08:46]} {[%emt 00:00:06]}
34. Rb5 {[%clk 00:09:31]} {[%emt 00:00:15]} Rc1+ {[%clk 00:07:54]} {[%emt
00:00:57]} 35. Kf2 {[%clk 00:09:32]} {[%emt 00:00:02]} Rc2+ {[%clk 00:07:57]}
{[%emt 00:00:04]} 36. Kg1 {[%clk 00:09:35]} {[%emt 00:00:02]} Rc1+ {[%clk
00:07:31]} {[%emt 00:00:30]} 37. Kf2 {[%clk 00:09:38]} {[%emt 00:00:02]} Re6
{[%clk 00:07:35]} {[%emt 00:00:02]} 38. Rxa5 {[%clk 00:08:59]} {[%emt
00:00:44]} Rf6+ {[%clk 00:07:39]} {[%emt 00:00:01]} 39. Ke2 {[%clk 00:09:03]}
Rc2+ {[%clk 00:07:43]} 40. Kd1 {[%clk 00:09:07]} Rxg2 {[%clk 00:07:46]} {[%emt
00:00:02]} 0-1

[Event "Kvibergspelen 2022"]
[Site "Kviberg Park Hotel & Conference, Krutvagen 2, Gothenburg, Sweden"]
[Date "2022.09.30"]
[Round "1.8"]
[White "Golubka, Petro"]
[Black "Hall, Simon"]
[Result "1-0"]
[TimeControl "15 minutes + 5 seconds per move from move one (Round 1 - 4) / 90 minutes + 30 seconds per move from move one (Round 5 - 8)"]
[WhiteTitle "GM"]
[WhiteFideId "14114224"]
[BlackFideId "1722441"]
[WhiteElo "2360"]
[BlackElo "1746"]

1. d4 {[%clk 00:14:07]} {[%emt 00:01:02]} Nf6 {[%clk 00:15:09]} {[%emt
00:00:02]} 2. Nc3 {[%clk 00:14:09]} {[%emt 00:00:02]} d6 {[%clk 00:15:08]}
{[%emt 00:00:06]} 3. Bf4 {[%clk 00:14:11]} {[%emt 00:00:03]} g6 {[%clk
00:15:00]} {[%emt 00:00:15]} 4. e4 {[%clk 00:14:10]} {[%emt 00:00:04]} c5
{[%clk 00:14:36]} {[%emt 00:00:31]} 5. dxc5 {[%clk 00:14:07]} {[%emt 00:00:08]}
dxc5 {[%clk 00:05:06]} {[%emt 00:09:34]} 6. Qxd8+ {[%clk 00:14:09]} {[%emt
00:00:03]} Kxd8 {[%clk 00:05:10]} {[%emt 00:00:02]} 7. O-O-O+ {[%clk 00:14:00]}
{[%emt 00:00:12]} Nfd7 {[%clk 00:03:58]} {[%emt 00:01:18]} 8. Nd5 {[%clk
00:13:48]} {[%emt 00:00:18]} e5 {[%clk 00:03:33]} {[%emt 00:00:30]} 9. Bg5+
{[%clk 00:13:46]} {[%emt 00:00:03]} f6 {[%clk 00:01:24]} {[%emt 00:02:18]} 10.
Nxf6 {[%clk 00:13:44]} {[%emt 00:00:06]} Be7 {[%clk 00:00:53]} {[%emt
00:00:36]} 11. Nf3 {[%clk 00:13:47]} {[%emt 00:00:02]} h6 {[%clk 00:00:24]}
{[%emt 00:00:34]} 12. Nxd7 {[%clk 00:13:49]} {[%emt 00:00:03]} Nxd7 {[%clk
00:00:23]} {[%emt 00:00:06]} 13. Bxe7+ {[%clk 00:13:52]} {[%emt 00:00:02]} Kxe7
{[%clk 00:00:26]} {[%emt 00:00:02]} 14. Bb5 {[%clk 00:13:55]} {[%emt 00:00:02]}
Rf8 {[%clk 00:00:24]} {[%emt 00:00:07]} 15. Rd2 {[%clk 00:13:39]} {[%emt
00:00:21]} Nf6 {[%clk 00:00:21]} {[%emt 00:00:09]} 16. Nxe5 {[%clk 00:13:41]}
{[%emt 00:00:03]} Nxe4 {[%clk 00:00:21]} {[%emt 00:00:05]} 17. Nxg6+ {[%clk
00:13:43]} {[%emt 00:00:02]} Kf7 {[%clk 00:00:20]} {[%emt 00:00:06]} 18. Nxf8
{[%clk 00:13:46]} {[%emt 00:00:02]} Kxf8 {[%clk 00:00:24]} {[%emt 00:00:02]} 19.
Rd8+ {[%clk 00:13:48]} {[%emt 00:00:02]} Ke7 {[%clk 00:00:26]} {[%emt
00:00:03]} 20. Re8+ {[%clk 00:13:51]} {[%emt 00:00:01]} 1-0

[Event "Kvibergspelen 2022"]
[Site "Kviberg Park Hotel & Conference, Krutvagen 2, Gothenburg, Sweden"]
[Date "2022.09.30"]
[Round "1.9"]
[White "Ghaderi, Roshan"]
[Black "Hamark, Jesper"]
[Result "0-1"]
[TimeControl "15 minutes + 5 seconds per move from move one (Round 1 - 4) / 90 minutes + 30 seconds per move from move one (Round 5 - 8)"]
[WhiteFideId "1744011"]
[BlackFideId "1704338"]
[WhiteElo "1741"]
[BlackElo "2348"]

1. e4 {[%clk 00:15:07]} {[%emt 00:00:02]} c5 {[%clk 00:15:09]} {[%emt
00:00:01]} 2. c3 {[%clk 00:15:11]} {[%emt 00:00:02]} d5 {[%clk 00:15:08]}
{[%emt 00:00:05]} 3. exd5 {[%clk 00:15:14]} {[%emt 00:00:02]} Qxd5 {[%clk
00:15:12]} {[%emt 00:00:01]} 4. Nf3 {[%clk 00:15:18]} {[%emt 00:00:02]} Nc6
{[%clk 00:15:07]} {[%emt 00:00:09]} 5. Bb5 {[%clk 00:15:14]} {[%emt 00:00:09]}
Bg4 {[%clk 00:14:25]} {[%emt 00:00:47]} 6. Be2 {[%clk 00:14:03]} {[%emt
00:01:17]} e6 {[%clk 00:14:21]} {[%emt 00:00:09]} 7. h3 {[%clk 00:13:55]}
{[%emt 00:00:13]} Bh5 {[%clk 00:14:23]} {[%emt 00:00:02]} 8. d4 {[%clk
00:13:21]} {[%emt 00:00:39]} cxd4 {[%clk 00:14:25]} {[%emt 00:00:04]} 9. cxd4
{[%clk 00:13:24]} {[%emt 00:00:01]} Nf6 {[%clk 00:13:51]} {[%emt 00:00:39]} 10.
Nc3 {[%clk 00:13:28]} {[%emt 00:00:02]} Qa5 {[%clk 00:13:54]} {[%emt 00:00:01]}
11. O-O {[%clk 00:13:24]} {[%emt 00:00:09]} Be7 {[%clk 00:13:58]} {[%emt
00:00:02]} 12. Be3 {[%clk 00:13:18]} {[%emt 00:00:10]} O-O {[%clk 00:13:58]}
{[%emt 00:00:05]} 13. a3 {[%clk 00:13:20]} {[%emt 00:00:03]} Rac8 {[%clk
00:13:33]} {[%emt 00:00:29]} 14. Rc1 {[%clk 00:12:54]} {[%emt 00:00:32]} a6
{[%clk 00:12:41]} {[%emt 00:00:58]} 15. Qb3 {[%clk 00:12:40]} {[%emt 00:00:18]}
Rb8 {[%clk 00:10:19]} {[%emt 00:02:28]} 16. Rfd1 {[%clk 00:09:45]} {[%emt
00:03:00]} Qc7 {[%clk 00:06:11]} {[%emt 00:04:12]} 17. d5 {[%clk 00:08:55]}
{[%emt 00:00:55]} exd5 {[%clk 00:06:14]} {[%emt 00:00:02]} 18. Nxd5 {[%clk
00:08:58]} {[%emt 00:00:01]} Nxd5 {[%clk 00:06:15]} {[%emt 00:00:05]} 19. Qxd5
{[%clk 00:08:51]} {[%emt 00:00:12]} Bxf3 {[%clk 00:05:45]} {[%emt 00:00:35]} 20.
Bxf3 {[%clk 00:08:41]} {[%emt 00:00:13]} Rbd8 {[%clk 00:05:42]} {[%emt
00:00:10]} 21. Qb3 {[%clk 00:08:43]} {[%emt 00:00:04]} Rxd1+ {[%clk 00:05:45]}
{[%emt 00:00:02]} 22. Rxd1 {[%clk 00:08:47]} Bf6 {[%clk 00:05:31]} {[%emt
00:00:18]} 23. Rc1 {[%clk 00:08:01]} {[%emt 00:00:51]} Rc8 {[%clk 00:04:38]}
{[%emt 00:00:58]} 24. Bg4 {[%clk 00:08:01]} {[%emt 00:00:05]} Re8 {[%clk
00:04:29]} {[%emt 00:00:13]} 25. Bf3 {[%clk 00:07:56]} {[%emt 00:00:11]} h6
{[%clk 00:03:34]} {[%emt 00:01:01]} 26. Bb6 {[%clk 00:07:44]} {[%emt 00:00:16]}
Qd7 {[%clk 00:03:32]} {[%emt 00:00:07]} 27. Rd1 {[%clk 00:07:40]} {[%emt
00:00:10]} Qf5 {[%clk 00:03:27]} {[%emt 00:00:09]} 28. Bg4 {[%clk 00:07:32]}
{[%emt 00:00:13]} Qb5 {[%clk 00:03:19]} {[%emt 00:00:13]} 29. Qxb5 {[%clk
00:07:15]} {[%emt 00:00:23]} axb5 {[%clk 00:03:23]} 30. b4 {[%clk 00:07:06]}
{[%emt 00:00:14]} Ne5 {[%clk 00:03:24]} {[%emt 00:00:03]} 31. Bd7 {[%clk
00:06:28]} {[%emt 00:00:42]} Nxd7 {[%clk 00:02:11]} {[%emt 00:01:18]} 32. Rxd7
{[%clk 00:06:32]} {[%emt 00:00:02]} Re1+ {[%clk 00:02:14]} {[%emt 00:00:01]} 33.
Kh2 {[%clk 00:06:35]} {[%emt 00:00:03]} Re7 {[%clk 00:02:17]} {[%emt 00:00:02]}
34. Rd5 {[%clk 00:06:31]} {[%emt 00:00:08]} Bb2 {[%clk 00:02:11]} {[%emt
00:00:12]} 35. Rxb5 {[%clk 00:06:29]} {[%emt 00:00:08]} Bxa3 {[%clk 00:02:15]}
36. Bc5 {[%clk 00:06:23]} {[%emt 00:00:10]} Rd7 {[%clk 00:02:19]} 37. Ra5
{[%clk 00:06:26]} {[%emt 00:00:02]} Bb2 {[%clk 00:02:23]} 38. Ra2 {[%clk
00:06:28]} {[%emt 00:00:04]} Be5+ {[%clk 00:02:25]} {[%emt 00:00:02]} 39. g3
{[%clk 00:06:31]} {[%emt 00:00:02]} g6 {[%clk 00:02:23]} {[%emt 00:00:07]} 40.
Re2 {[%clk 00:06:33]} {[%emt 00:00:03]} Bc3 {[%clk 00:02:21]} {[%emt 00:00:06]}
41. Rc2 {[%clk 00:06:27]} {[%emt 00:00:12]} Bf6 {[%clk 00:02:21]} {[%emt
00:00:03]} 42. Kg2 {[%clk 00:06:25]} {[%emt 00:00:09]} Kg7 {[%clk 00:02:25]} 43.
Re2 {[%clk 00:06:26]} {[%emt 00:00:05]} Bc3 {[%clk 00:02:29]} 44. Rc2 {[%clk
00:06:29]} {[%emt 00:00:02]} Be5 {[%clk 00:02:23]} {[%emt 00:00:10]} 45. Re2
{[%clk 00:06:33]} {[%emt 00:00:02]} Kf6 {[%clk 00:02:26]} {[%emt 00:00:02]} 46.
h4 {[%clk 00:06:26]} {[%emt 00:00:12]} h5 {[%clk 00:02:29]} 47. Be3 {[%clk
00:06:16]} {[%emt 00:00:15]} Rd5 {[%clk 00:02:15]} {[%emt 00:00:19]} 48. Bg5+
{[%clk 00:06:19]} {[%emt 00:00:02]} Kf5 {[%clk 00:02:17]} {[%emt 00:00:02]} 49.
Be7 {[%clk 00:05:53]} {[%emt 00:00:32]} Ke6 {[%clk 00:01:59]} {[%emt 00:00:23]}
50. Bc5 {[%clk 00:05:47]} {[%emt 00:00:12]} Kd7 {[%clk 00:02:03]} 51. f4 {[%clk
00:05:48]} {[%emt 00:00:04]} Bd6 {[%clk 00:01:55]} {[%emt 00:00:12]} 52. Bxd6
{[%clk 00:05:40]} {[%emt 00:00:13]} Kxd6 {[%clk 00:01:59]} {[%emt 00:00:02]} 53.
Re4 {[%clk 00:05:44]} {[%emt 00:00:01]} Rd3 {[%clk 00:01:53]} {[%emt 00:00:11]}
54. Rc4 {[%clk 00:05:31]} {[%emt 00:00:17]} Rb3 {[%clk 00:01:48]} {[%emt
00:00:10]} 55. Kf2 {[%clk 00:05:21]} {[%emt 00:00:16]} Ke6 {[%clk 00:01:48]}
{[%emt 00:00:04]} 56. Kg2 {[%clk 00:04:55]} {[%emt 00:00:31]} f6 {[%clk
00:01:43]} {[%emt 00:00:10]} 57. Kf2 {[%clk 00:04:57]} {[%emt 00:00:03]} Kf5
{[%clk 00:01:33]} {[%emt 00:00:15]} 58. Rc5+ {[%clk 00:04:42]} {[%emt
00:00:21]} Kg4 {[%clk 00:01:30]} {[%emt 00:00:08]} 59. Rb5 {[%clk 00:04:45]}
{[%emt 00:00:02]} Rb2+ {[%clk 00:01:18]} {[%emt 00:00:16]} 60. Kf1 {[%clk
00:04:43]} {[%emt 00:00:07]} Kf3 {[%clk 00:01:15]} {[%emt 00:00:08]} 61. Ke1
{[%clk 00:04:42]} {[%emt 00:00:06]} Kxg3 {[%clk 00:01:18]} {[%emt 00:00:02]} 62.
Rxb7 {[%clk 00:04:46]} {[%emt 00:00:01]} Kxf4 {[%clk 00:01:16]} {[%emt
00:00:07]} 63. Rb6 {[%clk 00:04:36]} {[%emt 00:00:16]} Kf5 {[%clk 00:01:15]}
{[%emt 00:00:04]} 64. Rb5+ {[%clk 00:04:39]} {[%emt 00:00:04]} Kg4 {[%clk
00:01:16]} {[%emt 00:00:03]} 65. Rb6 {[%clk 00:04:43]} g5 {[%clk 00:01:20]}
{[%emt 00:00:01]} 66. Rxf6 {[%clk 00:04:15]} {[%emt 00:00:33]} Kxh4 {[%emt
00:00:20]} 67. Rb6 {[%clk 00:04:04]} Kg4 {[%clk 00:01:24]} {[%emt 00:00:02]} 68.
Kf1 {[%clk 00:04:08]} {[%emt 00:00:01]} h4 {[%clk 00:01:27]} {[%emt 00:00:02]}
69. Kg1 {[%clk 00:04:12]} Kg3 {[%clk 00:01:30]} {[%emt 00:00:02]} 70. Kf1
{[%clk 00:04:09]} {[%emt 00:00:07]} h3 {[%clk 00:01:34]} {[%emt 00:00:02]} 71.
Rb5 {[%clk 00:04:13]} {[%emt 00:00:02]} g4 {[%clk 00:01:37]} {[%emt 00:00:02]}
72. Rg5 {[%clk 00:04:15]} {[%emt 00:00:03]} Rb1+ {[%clk 00:01:38]} {[%emt
00:00:03]} 73. Ke2 {[%clk 00:04:19]} {[%emt 00:00:01]} Rxb4 {[%clk 00:01:42]}
{[%emt 00:00:02]} 74. Rxg4+ {[%clk 00:04:13]} 0-1

[Event "Kvibergspelen 2022"]
[Site "Kviberg Park Hotel & Conference, Krutvagen 2, Gothenburg, Sweden"]
[Date "2022.09.30"]
[Round "1.10"]
[White "Mohammadi, Amir"]
[Black "Nilsson, Kristoffer"]
[Result "1-0"]
[TimeControl "15 minutes + 5 seconds per move from move one (Round 1 - 4) / 90 minutes + 30 seconds per move from move one (Round 5 - 8)"]
[WhiteFideId "1705890"]
[BlackFideId "1718487"]
[WhiteElo "2294"]
[BlackElo "1737"]

1. e4 {[%clk 00:15:03]} {[%emt 00:00:06]} c6 {[%clk 00:15:07]} {[%emt
00:00:04]} 2. d4 {[%clk 00:15:05]} {[%emt 00:00:04]} d5 {[%clk 00:15:10]}
{[%emt 00:00:02]} 3. e5 {[%clk 00:15:08]} c5 {[%clk 00:15:11]} {[%emt
00:00:04]} 4. c3 {[%clk 00:12:38]} {[%emt 00:02:35]} Nc6 {[%clk 00:15:13]}
{[%emt 00:00:04]} 5. Be3 {[%clk 00:12:32]} {[%emt 00:00:11]} Nh6 {[%clk
00:14:21]} {[%emt 00:00:56]} 6. Bxh6 {[%clk 00:12:26]} {[%emt 00:00:11]} gxh6
{[%clk 00:14:24]} {[%emt 00:00:02]} 7. Qd2 {[%clk 00:11:03]} {[%emt 00:01:28]}
Bf5 {[%clk 00:13:49]} {[%emt 00:00:40]} 8. Nf3 {[%clk 00:11:01]} {[%emt
00:00:06]} cxd4 {[%clk 00:13:24]} {[%emt 00:00:31]} 9. Nxd4 {[%clk 00:10:10]}
{[%emt 00:00:57]} Nxd4 {[%clk 00:10:18]} {[%emt 00:03:11]} 10. cxd4 {[%clk
00:10:12]} {[%emt 00:00:02]} Qb6 {[%clk 00:09:44]} {[%emt 00:00:39]} 11. Nc3
{[%clk 00:10:03]} {[%emt 00:00:14]} O-O-O {[%clk 00:09:26]} {[%emt 00:00:23]}
12. Bd3 {[%clk 00:09:08]} {[%emt 00:00:59]} Bxd3 {[%clk 00:07:48]} {[%emt
00:01:44]} 13. Qxd3 {[%clk 00:09:11]} {[%emt 00:00:02]} Kb8 {[%clk 00:07:28]}
{[%emt 00:00:25]} 14. O-O {[%clk 00:08:56]} {[%emt 00:00:20]} Bg7 {[%emt
00:01:24]} 15. a4 {[%clk 00:07:47]} {[%emt 00:01:12]} f6 {[%clk 00:05:18]}
{[%emt 00:00:58]} 16. Qg3 {[%clk 00:07:13]} {[%emt 00:00:39]} Qc7 {[%clk
00:03:37]} {[%emt 00:01:47]} 17. Nb5 {[%clk 00:06:48]} {[%emt 00:00:23]} 1-0

[Event "Kvibergspelen 2022"]
[Site "Kviberg Park Hotel & Conference, Krutvagen 2, Gothenburg, Sweden"]
[Date "2022.09.30"]
[Round "1.11"]
[White "Frank, Anton"]
[Black "Olsson, William"]
[Result "0-1"]
[TimeControl "15 minutes + 5 seconds per move from move one (Round 1 - 4) / 90 minutes + 30 seconds per move from move one (Round 5 - 8)"]
[BlackTitle "FM"]
[WhiteFideId "1752383"]
[BlackFideId "1741721"]
[WhiteElo "1734"]
[BlackElo "2288"]

1. e4 {[%clk 00:15:08]} {[%emt 00:00:01]} c5 {[%clk 00:15:09]} {[%emt
00:00:02]} 2. Nf3 {[%clk 00:15:11]} d6 {[%clk 00:15:13]} {[%emt 00:00:01]} 3.
d4 {[%clk 00:15:15]} cxd4 4. Nxd4 {[%clk 00:15:18]} Nf6 {[%clk 00:15:21]}
{[%emt 00:00:02]} 5. Nc3 {[%clk 00:15:22]} {[%emt 00:00:01]} g6 {[%clk
00:15:25]} 6. Be3 {[%clk 00:15:25]} {[%emt 00:00:03]} Bg7 {[%clk 00:15:29]}
{[%emt 00:00:01]} 7. f3 {[%clk 00:15:28]} {[%emt 00:00:02]} O-O {[%clk
00:15:32]} {[%emt 00:00:02]} 8. Qd2 {[%clk 00:15:32]} Nc6 {[%clk 00:15:36]}
{[%emt 00:00:02]} 9. O-O-O {[%clk 00:15:34]} {[%emt 00:00:03]} d5 {[%clk
00:15:39]} {[%emt 00:00:02]} 10. exd5 {[%clk 00:15:37]} Nxd5 {[%clk 00:15:43]}
{[%emt 00:00:02]} 11. Nxc6 {[%clk 00:15:40]} {[%emt 00:00:01]} bxc6 {[%clk
00:15:46]} {[%emt 00:00:02]} 12. Bd4 {[%clk 00:15:44]} e5 {[%clk 00:15:47]}
{[%emt 00:00:04]} 13. Bc5 {[%clk 00:15:48]} {[%emt 00:00:02]} Be6 {[%clk
00:15:51]} 14. h4 {[%clk 00:15:46]} {[%emt 00:00:06]} Qb8 {[%clk 00:14:20]}
{[%emt 00:01:37]} 15. Ne4 {[%clk 00:14:24]} {[%emt 00:01:27]} Rd8 {[%clk
00:14:20]} {[%emt 00:00:05]} 16. h5 {[%clk 00:11:41]} {[%emt 00:02:48]} Rd7
{[%clk 00:12:44]} {[%emt 00:01:42]} 17. hxg6 {[%clk 00:06:22]} {[%emt
00:05:24]} hxg6 {[%clk 00:10:22]} {[%emt 00:02:26]} 18. Bc4 {[%clk 00:04:55]}
{[%emt 00:01:31]} Nb6 {[%clk 00:09:25]} {[%emt 00:01:04]} 19. Qxd7 {[%clk
00:03:28]} {[%emt 00:01:32]} Nxc4 {[%clk 00:08:30]} {[%emt 00:01:00]} 20. Qd8+
{[%clk 00:02:46]} {[%emt 00:00:47]} Qxd8 {[%clk 00:08:33]} {[%emt 00:00:01]} 21.
Rxd8+ {[%clk 00:02:50]} Rxd8 {[%clk 00:08:37]} {[%emt 00:00:01]} 22. b3 {[%clk
00:02:54]} {[%emt 00:00:02]} Nb6 {[%clk 00:08:25]} {[%emt 00:00:17]} 23. Ng5
{[%clk 00:02:34]} {[%emt 00:00:25]} Rd5 {[%clk 00:07:05]} {[%emt 00:01:24]} 24.
Bb4 {[%clk 00:02:19]} {[%emt 00:00:20]} Bf5 {[%clk 00:06:12]} {[%emt 00:00:58]}
25. g4 {[%clk 00:02:22]} {[%emt 00:00:02]} Bc8 {[%clk 00:06:16]} {[%emt
00:00:02]} 26. Ne4 {[%clk 00:02:24]} {[%emt 00:00:03]} f5 {[%clk 00:06:09]}
{[%emt 00:00:12]} 27. gxf5 {[%clk 00:02:19]} {[%emt 00:00:09]} Bxf5 {[%clk
00:06:10]} {[%emt 00:00:03]} 28. Rg1 {[%clk 00:02:08]} {[%emt 00:00:17]} Nd7
{[%clk 00:05:51]} {[%emt 00:00:24]} 29. Nd6 {[%clk 00:02:05]} {[%emt 00:00:08]}
c5 {[%clk 00:05:16]} {[%emt 00:00:40]} 30. Nc8 {[%clk 00:01:51]} {[%emt
00:00:19]} Kf7 {[%clk 00:05:13]} {[%emt 00:00:08]} 31. Bd2 {[%clk 00:01:53]}
{[%emt 00:00:03]} a6 {[%clk 00:04:44]} {[%emt 00:00:34]} 32. Bg5 {[%clk
00:01:37]} {[%emt 00:00:21]} Bf6 {[%clk 00:04:33]} {[%emt 00:00:16]} 33. Bxf6
{[%clk 00:01:32]} {[%emt 00:00:11]} Kxf6 {[%clk 00:04:36]} 34. Rh1 {[%clk
00:01:26]} {[%emt 00:00:11]} Rd4 {[%clk 00:04:17]} {[%emt 00:00:22]} 35. Na7
{[%clk 00:01:11]} {[%emt 00:00:22]} Rd6 {[%clk 00:04:00]} {[%emt 00:00:22]} 36.
Rh8 {[%clk 00:01:08]} {[%emt 00:00:08]} Nb6 {[%clk 00:03:53]} {[%emt 00:00:11]}
37. Nc8 {[%clk 00:00:55]} {[%emt 00:00:19]} Nxc8 {[%emt 00:00:01]} 0-1

[Event "Kvibergspelen 2022"]
[Site "Kviberg Park Hotel & Conference, Krutvagen 2, Gothenburg, Sweden"]
[Date "2022.09.30"]
[Round "1.14"]
[White "Burwick, Malte"]
[Black "Lappas, Georgios"]
[Result "1-0"]
[TimeControl "15 minutes + 5 seconds per move from move one (Round 1 - 4) / 90 minutes + 30 seconds per move from move one (Round 5 - 8)"]
[WhiteFideId "1702475"]
[BlackFideId "1722484"]
[WhiteElo "2225"]
[BlackElo "1728"]

1. Nf3 {[%clk 00:15:08]} {[%emt 00:00:01]} d5 {[%clk 00:15:08]} {[%emt
00:00:03]} 2. g3 {[%clk 00:15:11]} {[%emt 00:00:02]} Nf6 {[%clk 00:15:07]}
{[%emt 00:00:05]} 3. Bg2 {[%clk 00:15:15]} {[%emt 00:00:01]} Bf5 {[%clk
00:14:36]} {[%emt 00:00:37]} 4. O-O {[%clk 00:15:17]} {[%emt 00:00:03]} e6
{[%clk 00:14:37]} {[%emt 00:00:04]} 5. c4 {[%clk 00:15:05]} {[%emt 00:00:16]}
c6 {[%clk 00:14:25]} {[%emt 00:00:17]} 6. b3 {[%clk 00:15:08]} {[%emt
00:00:03]} Be7 {[%clk 00:14:25]} {[%emt 00:00:06]} 7. Bb2 {[%clk 00:15:10]}
{[%emt 00:00:02]} O-O {[%clk 00:14:09]} {[%emt 00:00:22]} 8. d3 {[%clk
00:15:10]} {[%emt 00:00:05]} Nbd7 {[%clk 00:13:59]} {[%emt 00:00:16]} 9. Nbd2
{[%clk 00:14:58]} {[%emt 00:00:16]} a5 {[%clk 00:13:29]} {[%emt 00:00:34]} 10.
a3 {[%clk 00:14:51]} {[%emt 00:00:13]} b5 {[%clk 00:12:41]} {[%emt 00:00:53]}
11. Nd4 {[%clk 00:14:52]} {[%emt 00:00:04]} Qb6 {[%clk 00:11:53]} {[%emt
00:00:53]} 12. cxb5 {[%clk 00:14:43]} {[%emt 00:00:13]} c5 {[%clk 00:11:28]}
{[%emt 00:00:30]} 13. Nxf5 {[%clk 00:14:15]} {[%emt 00:00:34]} exf5 {[%clk
00:11:29]} {[%emt 00:00:04]} 14. a4 {[%clk 00:14:17]} {[%emt 00:00:03]} Rac8
{[%clk 00:11:01]} {[%emt 00:00:34]} 15. e3 {[%clk 00:14:09]} {[%emt 00:00:13]}
Qe6 {[%clk 00:10:41]} {[%emt 00:00:25]} 16. Re1 {[%clk 00:13:32]} {[%emt
00:00:42]} Ng4 {[%clk 00:10:31]} {[%emt 00:00:15]} 17. h3 {[%clk 00:13:24]}
{[%emt 00:00:13]} Nge5 {[%clk 00:10:30]} {[%emt 00:00:06]} 18. Nf3 {[%clk
00:13:14]} {[%emt 00:00:14]} Bf6 {[%clk 00:09:30]} {[%emt 00:01:05]} 19. Nxe5
{[%clk 00:12:48]} {[%emt 00:00:31]} Nxe5 {[%clk 00:09:15]} {[%emt 00:00:21]} 20.
Rb1 {[%clk 00:11:18]} {[%emt 00:01:36]} Rfd8 {[%clk 00:08:45]} {[%emt
00:00:34]} 21. d4 {[%clk 00:11:08]} {[%emt 00:00:14]} Ng6 {[%clk 00:08:13]}
{[%emt 00:00:37]} 22. Qd2 {[%clk 00:11:02]} {[%emt 00:00:11]} cxd4 {[%clk
00:07:24]} {[%emt 00:00:54]} 23. Bxd4 {[%clk 00:10:59]} {[%emt 00:00:08]} Ne5
{[%clk 00:05:37]} {[%emt 00:01:53]} 24. Qxa5 {[%clk 00:10:37]} {[%emt
00:00:27]} Nd3 {[%clk 00:04:41]} {[%emt 00:01:00]} 25. Red1 {[%clk 00:09:58]}
{[%emt 00:00:45]} Bxd4 {[%clk 00:04:03]} {[%emt 00:00:43]} 26. exd4 {[%clk
00:09:00]} {[%emt 00:01:03]} Qe2 {[%clk 00:03:52]} {[%emt 00:00:16]} 27. Rd2
{[%clk 00:08:59]} {[%emt 00:00:07]} 1-0